Workbook

Sheet MAL
A1: ="Dette er vår enkle mal" -> Dette er vår enkle mal | M1: 00:00:00
A2: ="Fanenavnet er " & MID(CELL("filnavn"),FIND("]",CELL("filnavn"))+1,100) -> Fanenavnet er MAL | E2: Overført flex
A5: Ugedag | B5: Dato | C5: Fri pga. | D5: mødetid | E5: gåtid | F5: timer | G5: frokost | H5: arb.timer | I5: norm timetal | J5: Flex +/- | K5: akk. Flex | M5: F | N5: Ferie
A6: =TEXT(B6,"dddd") -> søndag | B6: 2015-11-30 | C6: =HelligdagsNavn(B6,0,0) ->  | K6: =G2+J6 -> 0 | M6: FF | N6: Feriefri
A7: mandag | B7: =B6+1 -> 2015-12-01 | D7: 0.2916666667 | E7: 0.6666666667 | F7: =E7-D7 -> 0.375 | G7: 0.02083333333 | H7: =F7-G7 -> 0.3541666667 | I7: 0.3125 | J7: =H7-I7 -> 0.04166666667 | K7: =K6+J7 -> 0.04166666667 | M7: S | N7: Syg
A8: tirsdag | B8: =B7+1 -> 2015-12-02 | D8: 0.25 | E8: 0.6666666667 | F8: =IFERROR(E8-D8,"0") -> 0.4166666667 | G8: 0.02083333333 | H8: =F8-G8 -> 0.3958333333 | I8: 0.3125 | J8: =IF(OR(D8="",E8=""),$M$1,H8-I8) -> 0.08333333333 | K8: =K7+J8 -> 0.125 | M8: BS | N8: Barn Syg
A9: onsdag | B9: 2015-12-03 | D9: 0.2916666667 | E9: 0.4166666667 | F9: =IFERROR(E9-D9,"0") -> 0.125 | H9: =F9-G9 -> 0.125 | I9: 0.3125 | J9: =IF(OR(D9="",E9=" "),$M$1,H9-I9) -> -0.1875 | K9: =K8+J9 -> -0.0625 | M9: BF | N9: Betalt fri
A10: torsdag | B10: 2015-12-04 | K10: -0.0625 | M10: K | N10: Kursus
A11: fredag | B11: 2015-12-05 | K11: -0.0625 | M11: A | N11: Afsp.
A12: lørdag | B12: 2015-12-06 | K12: -0.0625
A13: søndag | B13: 2015-12-07 | K13: -0.0625
A14: mandag | B14: 2015-12-08 | K14: -0.0625
A15: tirsdag | B15: 2015-12-09 | K15: -0.0625
A16: onsdag | B16: 2015-12-10 | K16: -0.0625
A17: torsdag | B17: 2015-12-11 | K17: -0.0625
A18: fredag | B18: 2015-12-12 | K18: -0.0625
A19: lørdag | B19: 2015-12-13 | K19: -0.0625
A20: søndag | B20: 2015-12-14 | K20: -0.0625
A21: mandag | B21: 2015-12-15 | K21: -0.0625
A22: tirsdag | B22: 2015-12-16 | K22: -0.0625
A23: onsdag | B23: 2015-12-17 | K23: -0.0625
A24: torsdag | B24: 2015-12-18 | K24: -0.0625
A25: fredag | B25: 2015-12-19 | K25: -0.0625
A26: lørdag | B26: 2015-12-20 | K26: -0.0625
A27: søndag | B27: 2015-12-21 | K27: -0.0625
A28: mandag | B28: 2015-12-22 | K28: -0.0625
A29: tirsdag | B29: 2015-12-23 | C29: Julaftensdag | K29: -0.0625
A30: onsdag | B30: 2015-12-24 | C30: 1. Juledag | K30: -0.0625
A31: torsdag | B31: 2015-12-25 | C31: 2. Juledag | K31: -0.0625
A32: fredag | B32: 2015-12-26 | K32: -0.0625
A33: lørdag | B33: 2015-12-27 | K33: -0.0625
A34: søndag | B34: 2015-12-28 | K34: -0.0625
A35: mandag | B35: 2015-12-29 | K35: -0.0625
K36: -0.0625

Sheet Parametre
A1: Fra år | B1: 2017
A2: Til år | B2: 2018
A3: Skilletegn | B3: _
A4: Fra måned | B4: 1
A5: Til måned | B5: 1
A6: Beskr | B6: Salg_
A7: Ark som skal kopieres | B7: MAL
A9: Eksempelnavn | B9: =B6 & B1 & B3 & TEXT(B4,"00") -> Salg_2017_01
